[Event "Early-Titled-Tuesday-Blitz-April-02-2024"]
[Site "Chess.com"]
[Date "2024.04.02"]
[Round "2"]
[White "Practical-Play"]
[Black "mary-sanna"]
[Result "1/2-1/2"]
[WhiteElo "2488"]
[BlackElo "2211"]
[TimeControl "180+1"]
[EndTime "8:18:14 PDT"]
[Termination "Game drawn by repetition"]

1. e4 {[%clk 0:03:00.9]} 1... c5 {[%clk 0:02:58.9]} 2. c3 {[%clk 0:02:59.4]}
2... d5 {[%clk 0:02:51.5]} 3. exd5 {[%clk 0:03:00.3]} 3... Qxd5 {[%clk
0:02:51.7]} 4. d4 {[%clk 0:03:00.6]} 4... Bf5 {[%clk 0:02:39]} 5. Na3 {[%clk
0:02:56.5]} 5... cxd4 {[%clk 0:02:34.3]} 6. Nb5 {[%clk 0:02:55.3]} 6... Qe5+
{[%clk 0:02:19.6]} 7. Qe2 {[%clk 0:02:20.9]} 7... Qxe2+ {[%clk 0:01:53.3]} 8.
Bxe2 {[%clk 0:02:21.8]} 8... Na6 {[%clk 0:01:43.1]} 9. Bf3 {[%clk 0:01:59]} 9...
e5 {[%clk 0:00:59]} 10. Bxb7 {[%clk 0:01:57.6]} 10... Rb8 {[%clk 0:00:53.3]} 11.
Bxa6 {[%clk 0:01:56.6]} 11... Rb6 {[%clk 0:00:53.1]} 12. Nf3 {[%clk 0:01:41.9]}
12... Bd7 {[%clk 0:00:21.4]} 13. Nc7+ {[%clk 0:01:30.8]} 13... Kd8 {[%clk
0:00:20.7]} 14. Nxe5 {[%clk 0:01:08.4]} 14... Nh6 {[%clk 0:00:19.7]} 15. Bxh6
{[%clk 0:01:07.7]} 15... gxh6 {[%clk 0:00:18.3]} 16. Nd5 {[%clk 0:01:07.8]}
16... Rxa6 {[%clk 0:00:17.9]} 17. Nxf7+ {[%clk 0:01:07.3]} 17... Kc8 {[%clk
0:00:16.7]} 18. Nxh8 {[%clk 0:01:08.2]} 18... dxc3 {[%clk 0:00:16]} 19. Nxc3
{[%clk 0:01:07.6]} 19... Re6+ {[%clk 0:00:14.7]} 20. Kd2 {[%clk 0:01:07.9]}
20... Bg7 {[%clk 0:00:11.6]} 21. Rhe1 {[%clk 0:01:07.4]} 21... Rf6 {[%clk
0:00:10.2]} 22. f3 {[%clk 0:01:05.8]} 22... Rf8 {[%clk 0:00:10.2]} 23. Re7
{[%clk 0:01:05.6]} 23... Bxc3+ {[%clk 0:00:09]} 24. Kxc3 {[%clk 0:01:04.4]}
24... Rxh8 {[%clk 0:00:09.9]} 25. Rd1 {[%clk 0:01:04.4]} 25... Bf5 {[%clk
0:00:08.8]} 26. Rd5 {[%clk 0:01:02.2]} 26... Bg6 {[%clk 0:00:08.3]} 27. Rxa7
{[%clk 0:01:01.4]} 27... Kb8 {[%clk 0:00:08.3]} 28. Re7 {[%clk 0:00:59.3]} 28...
Rc8+ {[%clk 0:00:08.7]} 29. Kb3 {[%clk 0:00:57]} 29... Rc7 {[%clk 0:00:06.3]}
30. Rxc7 {[%clk 0:00:53.5]} 30... Kxc7 {[%clk 0:00:07.2]} 31. a4 {[%clk
0:00:53.7]} 31... Bf7 {[%clk 0:00:07.1]} 32. Kc4 {[%clk 0:00:53.5]} 32... Kc6
{[%clk 0:00:07.1]} 33. b4 {[%clk 0:00:52.7]} 33... Bxd5+ {[%clk 0:00:07.7]} 34.
Kd4 {[%clk 0:00:53.4]} 34... Bb3 {[%clk 0:00:07.4]} 35. a5 {[%clk 0:00:51.8]}
35... Kb5 {[%clk 0:00:07.8]} 36. Ke5 {[%clk 0:00:48]} 36... Bc4 {[%clk
0:00:05.9]} 37. Kf6 {[%clk 0:00:46.5]} 37... Kxb4 {[%clk 0:00:06.2]} 38. Kg7
{[%clk 0:00:47]} 38... Kxa5 {[%clk 0:00:05.7]} 39. Kxh6 {[%clk 0:00:45.3]} 39...
Bd3 {[%clk 0:00:05.8]} 40. f4 {[%clk 0:00:43.2]} 40... Kb6 {[%clk 0:00:06.2]}
41. g4 {[%clk 0:00:43.8]} 41... Kc5 {[%clk 0:00:06.5]} 42. f5 {[%clk 0:00:44.3]}
42... Kd6 {[%clk 0:00:06.7]} 43. Kxh7 {[%clk 0:00:44.6]} 43... Ke5 {[%clk
0:00:06]} 44. Kg7 {[%clk 0:00:42]} 44... Kf4 {[%clk 0:00:05.8]} 45. f6 {[%clk
0:00:41.6]} 45... Bc4 {[%clk 0:00:05.2]} 46. Kf8 {[%clk 0:00:20.7]} 46... Kxg4
{[%clk 0:00:04.8]} 47. Ke7 {[%clk 0:00:21.6]} 47... Kh3 {[%clk 0:00:05]} 48. Kd6
{[%clk 0:00:22.1]} 48... Kxh2 {[%clk 0:00:05.2]} 49. Ke5 {[%clk 0:00:23]} 49...
Bf7 {[%clk 0:00:05.5]} 50. Kf5 {[%clk 0:00:23.9]} 50... Kg3 {[%clk 0:00:05.7]}
51. Kg5 {[%clk 0:00:24.8]} 51... Kf3 {[%clk 0:00:06]} 52. Kf5 {[%clk 0:00:25.7]}
52... Kg3 {[%clk 0:00:06.5]} 53. Ke5 {[%clk 0:00:26.6]} 53... Kg4 {[%clk
0:00:06.7]} 54. Kd6 {[%clk 0:00:26.1]} 54... Kg5 {[%clk 0:00:07]} 55. Ke7 {[%clk
0:00:26.5]} 55... Bh5 {[%clk 0:00:07.3]} 56. Ke6 {[%clk 0:00:26.9]} 56... Bg6
{[%clk 0:00:06.7]} 57. Ke7 {[%clk 0:00:27.8]} 57... Bh5 {[%clk 0:00:06.9]} 58.
Ke6 {[%clk 0:00:28.2]} 58... Bg6 {[%clk 0:00:07.2]} 59. Ke7 {[%clk 0:00:29.1]}
59... Bh5 {[%clk 0:00:07.6]} 1/2-1/2

[Event "Early-Titled-Tuesday-Blitz-April-02-2024"]
[Site "Chess.com"]
[Date "2024.04.02"]
[Round "2"]
[White "Rawnsdale"]
[Black "Aradhya2000"]
[Result "0-1"]
[WhiteElo "2565"]
[BlackElo "2755"]
[TimeControl "180+1"]
[EndTime "8:18:15 PDT"]
[Termination "Aradhya2000 won by resignation"]

1. e4 {[%clk 0:03:00.9]} 1... e5 {[%clk 0:02:59.7]} 2. Nf3 {[%clk 0:03:01.1]}
2... Nc6 {[%clk 0:03:00]} 3. Bb5 {[%clk 0:03:01.7]} 3... a6 {[%clk 0:03:00.1]}
4. Ba4 {[%clk 0:03:02.1]} 4... Nge7 {[%clk 0:03:00.5]} 5. O-O {[%clk 0:03:02]}
5... Ng6 {[%clk 0:03:00.6]} 6. Re1 {[%clk 0:02:57.9]} 6... Be7 {[%clk
0:02:43.6]} 7. c3 {[%clk 0:02:57.7]} 7... O-O {[%clk 0:02:43.2]} 8. d4 {[%clk
0:02:57.9]} 8... d6 {[%clk 0:02:43.5]} 9. Bxc6 {[%clk 0:02:43.8]} 9... bxc6
{[%clk 0:02:42.2]} 10. dxe5 {[%clk 0:02:43.8]} 10... dxe5 {[%clk 0:02:39.6]} 11.
Be3 {[%clk 0:02:36.9]} 11... Be6 {[%clk 0:02:36.7]} 12. Nbd2 {[%clk 0:02:22.5]}
12... Qb8 {[%clk 0:02:27.3]} 13. Qc2 {[%clk 0:02:20.9]} 13... f6 {[%clk
0:02:26.8]} 14. Nb3 {[%clk 0:02:10.5]} 14... Qb5 {[%clk 0:02:21]} 15. Nfd2
{[%clk 0:01:58.8]} 15... Rfd8 {[%clk 0:02:16.2]} 16. c4 {[%clk 0:01:56.6]} 16...
Qb4 {[%clk 0:02:08.2]} 17. a3 {[%clk 0:01:43]} 17... Qa4 {[%clk 0:02:08.2]} 18.
Qc3 {[%clk 0:01:41.2]} 18... Nf4 {[%clk 0:02:02.4]} 19. Bxf4 {[%clk 0:01:36.8]}
19... exf4 {[%clk 0:02:02.4]} 20. Nd4 {[%clk 0:01:35.8]} 20... Rxd4 {[%clk
0:01:55.3]} 21. Qxd4 {[%clk 0:01:33.4]} 21... Qc2 {[%clk 0:01:47.9]} 22. Rac1
{[%clk 0:01:26.5]} 22... c5 {[%clk 0:01:45.3]} 23. Qxf6 {[%clk 0:01:01.4]} 23...
Bxf6 {[%clk 0:01:34.4]} 24. Rxc2 {[%clk 0:01:01.4]} 24... Rd8 {[%clk 0:01:33.6]}
25. e5 {[%clk 0:00:58.8]} 25... Bf5 {[%clk 0:01:33.7]} 26. Rc3 {[%clk
0:00:46.2]} 26... Be7 {[%clk 0:01:17.3]} 27. Nf3 {[%clk 0:00:44.3]} 27... g5
{[%clk 0:01:16.6]} 28. h3 {[%clk 0:00:43.5]} 28... h5 {[%clk 0:01:16.2]} 29.
Rcc1 {[%clk 0:00:39.7]} 29... g4 {[%clk 0:01:14.9]} 30. hxg4 {[%clk 0:00:33.3]}
30... hxg4 {[%clk 0:01:15.8]} 31. Nh2 {[%clk 0:00:34.1]} 31... Rd2 {[%clk
0:01:15.7]} 32. e6 {[%clk 0:00:27.8]} 32... Kg7 {[%clk 0:01:10.2]} 33. Re5
{[%clk 0:00:26.7]} 33... Kf6 {[%clk 0:01:10.2]} 34. Rd5 {[%clk 0:00:17.6]} 34...
Rxb2 {[%clk 0:01:08.3]} 35. Re1 {[%clk 0:00:16.3]} 35... Rc2 {[%clk 0:00:28.3]}
36. f3 {[%clk 0:00:15.7]} 36... gxf3 {[%clk 0:00:20.6]} 37. Nxf3 {[%clk
0:00:14.8]} 37... Rxc4 {[%clk 0:00:20.7]} 38. Ne5 {[%clk 0:00:11.3]} 38... Re4
{[%clk 0:00:16.6]} 39. Nd7+ {[%clk 0:00:09.6]} 39... Kxe6 {[%clk 0:00:16.8]} 40.
Rxe4+ {[%clk 0:00:04.2]} 40... Bxe4 {[%clk 0:00:16.9]} 41. Rxc5 {[%clk
0:00:03.3]} 41... Kxd7 {[%clk 0:00:15.9]} 42. Rc4 {[%clk 0:00:02.7]} 42... Bd5
{[%clk 0:00:12.7]} 43. Rxf4 {[%clk 0:00:02.5]} 43... Bxa3 {[%clk 0:00:13.1]} 44.
Kf1 {[%clk 0:00:03]} 44... Bd6 {[%clk 0:00:12.4]} 45. Rf2 {[%clk 0:00:02.2]}
45... a5 {[%clk 0:00:12.2]} 46. g4 {[%clk 0:00:02.5]} 46... a4 {[%clk
0:00:12.5]} 47. g5 {[%clk 0:00:03.2]} 47... a3 {[%clk 0:00:13]} 48. g6 {[%clk
0:00:03.7]} 48... a2 {[%clk 0:00:13.4]} 49. Rxa2 {[%clk 0:00:04.1]} 49... Bxa2
{[%clk 0:00:13.5]} 50. g7 {[%clk 0:00:05]} 50... Bg8 {[%clk 0:00:13.9]} 51. Ke2
{[%clk 0:00:05.9]} 51... Be5 {[%clk 0:00:14.5]} 52. Kd3 {[%clk 0:00:06.8]} 52...
Bxg7 {[%clk 0:00:15.2]} 53. Ke4 {[%clk 0:00:07.2]} 53... c5 {[%clk 0:00:15.8]}
54. Kd3 {[%clk 0:00:07.9]} 54... c4+ {[%clk 0:00:15.8]} 55. Kc2 {[%clk
0:00:08.8]} 55... c3 {[%clk 0:00:16.7]} 56. Kc1 {[%clk 0:00:09.7]} 0-1

[Event "Early-Titled-Tuesday-Blitz-April-02-2024"]
[Site "Chess.com"]
[Date "2024.04.02"]
[Round "2"]
[White "the_chess_child"]
[Black "Kotofeyca"]
[Result "1-0"]
[WhiteElo "2841"]
[BlackElo "2497"]
[TimeControl "180+1"]
[EndTime "8:18:17 PDT"]
[Termination "the_chess_child won by resignation"]

1. e4 {[%clk 0:03:00.9]} 1... c5 {[%clk 0:02:59.4]} 2. Nf3 {[%clk 0:03:00]} 2...
d6 {[%clk 0:02:59.9]} 3. g3 {[%clk 0:02:59.3]} 3... Nc6 {[%clk 0:02:59.5]} 4.
Bg2 {[%clk 0:02:58.9]} 4... Bg4 {[%clk 0:02:59.5]} 5. h3 {[%clk 0:02:57.6]} 5...
Bxf3 {[%clk 0:02:59.2]} 6. Bxf3 {[%clk 0:02:58.3]} 6... g6 {[%clk 0:02:59.8]} 7.
O-O {[%clk 0:02:58.1]} 7... Bg7 {[%clk 0:03:00.4]} 8. c3 {[%clk 0:02:57]} 8...
Qd7 {[%clk 0:03:00.3]} 9. Bg2 {[%clk 0:02:57]} 9... e6 {[%clk 0:02:58.8]} 10. a4
{[%clk 0:02:56.6]} 10... Nge7 {[%clk 0:02:58.6]} 11. Re1 {[%clk 0:02:56.9]}
11... O-O {[%clk 0:02:58.4]} 12. d3 {[%clk 0:02:57.3]} 12... a6 {[%clk 0:02:58]}
13. Na3 {[%clk 0:02:54.8]} 13... Na5 {[%clk 0:02:51.5]} 14. Be3 {[%clk
0:02:53.3]} 14... b5 {[%clk 0:02:49.4]} 15. axb5 {[%clk 0:02:48.3]} 15... axb5
{[%clk 0:02:50.3]} 16. e5 {[%clk 0:02:40.1]} 16... Rab8 {[%clk 0:02:30.8]} 17.
exd6 {[%clk 0:02:38.1]} 17... Qxd6 {[%clk 0:02:31.7]} 18. Nc2 {[%clk 0:02:37.4]}
18... Nb3 {[%clk 0:02:12.9]} 19. Ra3 {[%clk 0:02:35.4]} 19... c4 {[%clk
0:02:04.6]} 20. dxc4 {[%clk 0:02:19.5]} 20... Qxd1 {[%clk 0:02:03.6]} 21. Rxd1
{[%clk 0:02:19.5]} 21... bxc4 {[%clk 0:02:04.5]} 22. Bf1 {[%clk 0:02:19.6]}
22... Rfc8 {[%clk 0:01:50.7]} 23. Rd7 {[%clk 0:02:09.3]} 23... Nd5 {[%clk
0:01:50.2]} 24. Raa7 {[%clk 0:02:00.4]} 24... Nxe3 {[%clk 0:01:36.3]} 25. Nxe3
{[%clk 0:02:01.3]} 25... Rf8 {[%clk 0:01:34.9]} 26. Bxc4 {[%clk 0:02:00.4]}
26... Nc5 {[%clk 0:01:32.8]} 27. Rdc7 {[%clk 0:01:57.8]} 27... Ne4 {[%clk
0:01:30.1]} 28. Rab7 {[%clk 0:01:57.3]} 28... Be5 {[%clk 0:01:14.2]} 29. Re7
{[%clk 0:01:39.1]} 29... Bf6 {[%clk 0:01:04.9]} 30. Rxf7 {[%clk 0:01:38.1]}
30... Rxb7 {[%clk 0:00:19.9]} 31. Rxb7 {[%clk 0:01:39]} 31... Bg5 {[%clk
0:00:20.1]} 32. Bxe6+ {[%clk 0:01:36.5]} 32... Kh8 {[%clk 0:00:19.4]} 33. f4
{[%clk 0:01:30.8]} 33... Nc5 {[%clk 0:00:16.1]} 34. Rb6 {[%clk 0:01:26.5]} 34...
Bd8 {[%clk 0:00:15.3]} 35. Rc6 {[%clk 0:01:26.7]} 35... Na4 {[%clk 0:00:13.5]}
36. Nc4 {[%clk 0:01:22.9]} 36... Bf6 {[%clk 0:00:13.3]} 37. Kg2 {[%clk
0:01:19.5]} 37... Rb8 {[%clk 0:00:13]} 38. Rc8+ {[%clk 0:01:06.5]} 38... Rxc8
{[%clk 0:00:12.5]} 39. Bxc8 {[%clk 0:01:07.4]} 39... Be7 {[%clk 0:00:09.5]} 40.
Bd7 {[%clk 0:01:03.4]} 40... Nc5 {[%clk 0:00:09.6]} 41. Bc6 {[%clk 0:01:03.7]}
41... Nd3 {[%clk 0:00:09.6]} 42. Kf3 {[%clk 0:01:03.6]} 42... Kg7 {[%clk
0:00:09.4]} 43. Ke3 {[%clk 0:01:01.8]} 43... Nc5 {[%clk 0:00:08.5]} 44. b4
{[%clk 0:01:01.4]} 44... Na6 {[%clk 0:00:07]} 45. Ne5 {[%clk 0:00:59.8]} 45...
Kf6 {[%clk 0:00:06.7]} 46. Kd4 {[%clk 0:00:57.4]} 46... Bd6 {[%clk 0:00:07.1]}
47. Nc4 {[%clk 0:00:56.7]} 47... Bc7 {[%clk 0:00:07.1]} 48. Ne3 {[%clk
0:00:56.9]} 48... Ke6 {[%clk 0:00:06.8]} 49. Bd5+ {[%clk 0:00:56.6]} 49... Kd6
{[%clk 0:00:07.7]} 50. Bg8 {[%clk 0:00:56.7]} 50... Bb6+ {[%clk 0:00:07.9]} 51.
Kd3 {[%clk 0:00:56.4]} 51... h6 {[%clk 0:00:08.7]} 52. Bh7 {[%clk 0:00:56.3]}
52... g5 {[%clk 0:00:09.1]} 53. Nc4+ {[%clk 0:00:51.6]} 53... Kc7 {[%clk
0:00:08.5]} 54. Nxb6 {[%clk 0:00:51.8]} 54... Kxb6 {[%clk 0:00:09.4]} 55. fxg5
{[%clk 0:00:52.1]} 55... hxg5 {[%clk 0:00:10.3]} 56. h4 {[%clk 0:00:52.8]} 56...
gxh4 {[%clk 0:00:10.6]} 57. gxh4 {[%clk 0:00:53.7]} 57... Nc7 {[%clk 0:00:11]}
58. Bf5 {[%clk 0:00:51.8]} 58... Nd5 {[%clk 0:00:11.9]} 59. Kd4 {[%clk
0:00:48.8]} 59... Nf6 {[%clk 0:00:11.9]} 60. Bg6 {[%clk 0:00:48.4]} 60... Kc6
{[%clk 0:00:11.4]} 61. Ke5 {[%clk 0:00:48.1]} 61... Ng4+ {[%clk 0:00:11.6]} 62.
Kf4 {[%clk 0:00:47.4]} 62... Nf6 {[%clk 0:00:11.5]} 63. h5 {[%clk 0:00:47.9]}
63... Ng8 {[%clk 0:00:10.8]} 64. Kg5 {[%clk 0:00:47]} 64... Kd6 {[%clk
0:00:11.4]} 65. h6 {[%clk 0:00:47.1]} 1-0

[Event "Early-Titled-Tuesday-Blitz-April-02-2024"]
[Site "Chess.com"]
[Date "2024.04.02"]
[Round "2"]
[White "moro182"]
[Black "Zq1"]
[Result "1-0"]
[WhiteElo "2888"]
[BlackElo "2604"]
[TimeControl "180+1"]
[EndTime "8:18:19 PDT"]
[Termination "moro182 won by checkmate"]

1. d4 {[%clk 0:03:00.9]} 1... Nf6 {[%clk 0:02:59]} 2. Bf4 {[%clk 0:03:01.3]}
2... c5 {[%clk 0:02:58.2]} 3. e3 {[%clk 0:03:01.6]} 3... g6 {[%clk 0:02:56.1]}
4. Nf3 {[%clk 0:03:00.9]} 4... Bg7 {[%clk 0:02:54.3]} 5. h3 {[%clk 0:03:01.4]}
5... O-O {[%clk 0:02:53.3]} 6. c3 {[%clk 0:03:01]} 6... b6 {[%clk 0:02:53.1]} 7.
Nbd2 {[%clk 0:02:59.5]} 7... d6 {[%clk 0:02:45.8]} 8. Bh2 {[%clk 0:02:51.8]}
8... Ba6 {[%clk 0:02:41]} 9. Bxa6 {[%clk 0:02:48.6]} 9... Nxa6 {[%clk 0:02:41]}
10. O-O {[%clk 0:02:49.3]} 10... b5 {[%clk 0:02:40.1]} 11. Qe2 {[%clk
0:02:47.7]} 11... Qb6 {[%clk 0:02:28.1]} 12. a4 {[%clk 0:02:46.7]} 12... b4
{[%clk 0:02:27.6]} 13. e4 {[%clk 0:02:41.5]} 13... bxc3 {[%clk 0:02:22.3]} 14.
bxc3 {[%clk 0:02:40.9]} 14... cxd4 {[%clk 0:02:22.5]} 15. cxd4 {[%clk
0:02:27.7]} 15... Nb4 {[%clk 0:02:20.8]} 16. a5 {[%clk 0:02:21.8]} 16... Qa6
{[%clk 0:02:19.7]} 17. Qxa6 {[%clk 0:02:15.8]} 17... Nxa6 {[%clk 0:02:18.3]} 18.
Rab1 {[%clk 0:02:15.7]} 18... Rab8 {[%clk 0:02:08.7]} 19. e5 {[%clk 0:02:14.3]}
19... dxe5 {[%clk 0:01:53.6]} 20. Bxe5 {[%clk 0:01:54.8]} 20... Rxb1 {[%clk
0:01:37.9]} 21. Rxb1 {[%clk 0:01:55.7]} 21... Nd5 {[%clk 0:01:36.4]} 22. Rb7
{[%clk 0:01:51.9]} 22... Ra8 {[%clk 0:01:29.8]} 23. Ne4 {[%clk 0:01:26.6]} 23...
Nab4 {[%clk 0:01:15.4]} 24. Rd7 {[%clk 0:01:00]} 24... f6 {[%clk 0:01:01.6]} 25.
Bg3 {[%clk 0:00:54.7]} 25... Kf8 {[%clk 0:00:59.1]} 26. Nc5 {[%clk 0:00:53.2]}
26... Ke8 {[%clk 0:00:51.2]} 27. a6 {[%clk 0:00:44.2]} 27... Nc3 {[%clk
0:00:34.9]} 28. Rb7 {[%clk 0:00:39.4]} 28... Ne2+ {[%clk 0:00:33.6]} 29. Kh2
{[%clk 0:00:39.2]} 29... Nxg3 {[%clk 0:00:33.4]} 30. Rxb4 {[%clk 0:00:29.6]}
30... Nf5 {[%clk 0:00:27.7]} 31. Rb7 {[%clk 0:00:29.4]} 31... Kf7 {[%clk
0:00:25.4]} 32. Ne4 {[%clk 0:00:26.7]} 32... Bh6 {[%clk 0:00:21.8]} 33. g4
{[%clk 0:00:25.6]} 33... Bf4+ {[%clk 0:00:19.3]} 34. Kg2 {[%clk 0:00:25.8]}
34... Nd6 {[%clk 0:00:19.4]} 35. Nxd6+ {[%clk 0:00:25.1]} 35... Bxd6 {[%clk
0:00:18.7]} 36. Nd2 {[%clk 0:00:23.9]} 36... Ke6 {[%clk 0:00:17.9]} 37. Kf3
{[%clk 0:00:22.9]} 37... Kd5 {[%clk 0:00:17.9]} 38. Ke3 {[%clk 0:00:23.5]} 38...
h5 {[%clk 0:00:15.8]} 39. Kd3 {[%clk 0:00:22.3]} 39... hxg4 {[%clk 0:00:15.6]}
40. hxg4 {[%clk 0:00:23.2]} 40... f5 {[%clk 0:00:13.6]} 41. gxf5 {[%clk
0:00:22.1]} 41... gxf5 {[%clk 0:00:13.3]} 42. Nc4 {[%clk 0:00:22.6]} 42... Kc6
{[%clk 0:00:10.3]} 43. Ne3 {[%clk 0:00:19.5]} 43... e6 {[%clk 0:00:09.4]} 44.
Kc4 {[%clk 0:00:19.2]} 44... f4 {[%clk 0:00:08.7]} 45. Ng4 {[%clk 0:00:14.8]}
45... Rc8 {[%clk 0:00:08.2]} 46. Kd3 {[%clk 0:00:14.7]} 46... Rc7 {[%clk
0:00:07.6]} 47. Rb1 {[%clk 0:00:14.3]} 47... Kd5 {[%clk 0:00:05.3]} 48. Nf6+
{[%clk 0:00:14.4]} 48... Kc6 {[%clk 0:00:05.4]} 49. Ne8 {[%clk 0:00:14.9]} 49...
Re7 {[%clk 0:00:03.4]} 50. Rc1+ {[%clk 0:00:12.4]} 50... Kd5 {[%clk 0:00:01.5]}
51. Nf6# {[%clk 0:00:12.5]} 1-0

[Event "Early-Titled-Tuesday-Blitz-April-02-2024"]
[Site "Chess.com"]
[Date "2024.04.02"]
[Round "2"]
[White "RobertoJBM"]
[Black "AsaHoffmann"]
[Result "1-0"]
[WhiteElo "2797"]
[BlackElo "2396"]
[TimeControl "180+1"]
[EndTime "8:18:19 PDT"]
[Termination "RobertoJBM won on time"]

1. e4 {[%clk 0:03:00.9]} 1... d6 {[%clk 0:02:49.3]} 2. d4 {[%clk 0:03:00]} 2...
c6 {[%clk 0:02:45.9]} 3. Nc3 {[%clk 0:02:58.2]} 3... a6 {[%clk 0:02:45.8]} 4. a4
{[%clk 0:02:57.6]} 4... Nf6 {[%clk 0:02:44.1]} 5. f4 {[%clk 0:02:57.2]} 5... Qa5
{[%clk 0:02:42.5]} 6. Bd3 {[%clk 0:02:53.9]} 6... e5 {[%clk 0:02:42.3]} 7. Nf3
{[%clk 0:02:51.6]} 7... exd4 {[%clk 0:02:36.3]} 8. Nxd4 {[%clk 0:02:49.9]} 8...
Bg4 {[%clk 0:02:34.3]} 9. Qd2 {[%clk 0:02:48.4]} 9... Bd7 {[%clk 0:02:07]} 10.
Nb3 {[%clk 0:02:40.4]} 10... Qc7 {[%clk 0:02:06.2]} 11. O-O {[%clk 0:02:39.8]}
11... Be7 {[%clk 0:02:05.7]} 12. a5 {[%clk 0:02:24.3]} 12... O-O {[%clk
0:02:04.1]} 13. Kh1 {[%clk 0:02:24.7]} 13... c5 {[%clk 0:01:51.1]} 14. Bc4
{[%clk 0:02:18.9]} 14... Be6 {[%clk 0:01:49.6]} 15. Qe2 {[%clk 0:01:38]} 15...
Nc6 {[%clk 0:01:44.4]} 16. Bxe6 {[%clk 0:01:36.5]} 16... fxe6 {[%clk 0:01:43.9]}
17. Qc4 {[%clk 0:01:37.2]} 17... Qc8 {[%clk 0:01:34.1]} 18. Be3 {[%clk
0:01:32.2]} 18... Kh8 {[%clk 0:01:33.2]} 19. Rad1 {[%clk 0:01:20.2]} 19... Nb4
{[%clk 0:01:32.8]} 20. Rd2 {[%clk 0:01:11.8]} 20... d5 {[%clk 0:01:32.6]} 21.
exd5 {[%clk 0:01:07.1]} 21... exd5 {[%clk 0:01:32.5]} 22. Nxd5 {[%clk
0:01:03.2]} 22... Nfxd5 {[%clk 0:01:30.8]} 23. Rxd5 {[%clk 0:01:03.6]} 23...
Nxd5 {[%clk 0:01:27]} 24. Qxd5 {[%clk 0:01:03.4]} 24... c4 {[%clk 0:01:19.3]}
25. Nd4 {[%clk 0:00:56.1]} 25... Bf6 {[%clk 0:01:17.4]} 26. Ne6 {[%clk
0:00:49.1]} 26... Re8 {[%clk 0:01:11.7]} 27. f5 {[%clk 0:00:49.2]} 27... Qc6
{[%clk 0:00:52.8]} 28. Qxc6 {[%clk 0:00:33.9]} 28... bxc6 {[%clk 0:00:52.6]} 29.
c3 {[%clk 0:00:34.6]} 29... Rab8 {[%clk 0:00:48.8]} 30. Bb6 {[%clk 0:00:34.3]}
30... Rb7 {[%clk 0:00:43]} 31. Rd1 {[%clk 0:00:33.3]} 31... Kg8 {[%clk
0:00:41.2]} 32. g4 {[%clk 0:00:32.1]} 32... h6 {[%clk 0:00:40]} 33. Kg2 {[%clk
0:00:30.1]} 33... Kf7 {[%clk 0:00:39.9]} 34. Rd6 {[%clk 0:00:26.3]} 34... Rc8
{[%clk 0:00:33.8]} 35. Kf3 {[%clk 0:00:22.9]} 35... Be5 {[%clk 0:00:33.3]} 36.
Nd8+ {[%clk 0:00:13.5]} 36... Rxd8 {[%clk 0:00:30]} 37. Rxd8 {[%clk 0:00:14.4]}
37... Bxh2 {[%clk 0:00:29.7]} 38. Rc8 {[%clk 0:00:13.4]} 38... Be5 {[%clk
0:00:24.8]} 39. Rxc6 {[%clk 0:00:13]} 39... Ke7 {[%clk 0:00:22.9]} 40. Rxc4
{[%clk 0:00:13.1]} 40... Kd6 {[%clk 0:00:23]} 41. b4 {[%clk 0:00:12.6]} 41...
Rf7 {[%clk 0:00:20.1]} 42. Ke4 {[%clk 0:00:12.3]} 42... Bg3 {[%clk 0:00:18.7]}
43. Rd4+ {[%clk 0:00:12.3]} 43... Kc6 {[%clk 0:00:18.6]} 44. c4 {[%clk
0:00:12.8]} 44... Re7+ {[%clk 0:00:16]} 45. Kd3 {[%clk 0:00:12.8]} 45... Bd6
{[%clk 0:00:15.4]} 46. b5+ {[%clk 0:00:12.2]} 46... axb5 {[%clk 0:00:13.9]} 47.
cxb5+ {[%clk 0:00:13.1]} 47... Kxb5 {[%clk 0:00:11.8]} 48. Rxd6 {[%clk 0:00:13]}
48... Re1 {[%clk 0:00:11.6]} 49. Rd4 {[%clk 0:00:13]} 49... Rd1+ {[%clk
0:00:11.1]} 50. Ke4 {[%clk 0:00:13.5]} 50... Re1+ {[%clk 0:00:11]} 51. Kd5
{[%clk 0:00:14]} 51... Rg1 {[%clk 0:00:09.4]} 52. Rb4+ {[%clk 0:00:12.3]} 52...
Kxb4 {[%clk 0:00:07.1]} 53. Bxg1 {[%clk 0:00:13.2]} 53... Kxa5 {[%clk
0:00:06.7]} 54. Bd4 {[%clk 0:00:13.9]} 54... Kb5 {[%clk 0:00:05.4]} 55. Bxg7
{[%clk 0:00:13.9]} 1-0